[Event "*** Titled Tuesday Blitz"]
[Site "Chess.com"]
[Date "2020.05.05"]
[Round "7"]
[White "Gareth-Bale11"]
[Black "MilanovicDan"]
[Result "0-1"]
[WhiteElo "2730"]
[BlackElo "2523"]
[TimeControl "180+1"]
[EndTime "11:20:09 PDT"]
[Termination "MilanovicDan won by checkmate"]

1. Nf3 {[%clk 0:03:00.9]} 1... Nf6 {[%clk 0:02:59]} 2. c4 {[%clk 0:03:00.8]}
2... c5 {[%clk 0:02:58.6]} 3. Nc3 {[%clk 0:03:00.5]} 3... b6 {[%clk 0:02:57.4]}
4. e4 {[%clk 0:02:57.3]} 4... d6 {[%clk 0:02:56.7]} 5. d4 {[%clk 0:02:55.4]}
5... cxd4 {[%clk 0:02:56.9]} 6. Nxd4 {[%clk 0:02:56.3]} 6... e6 {[%clk
0:02:56.5]} 7. Be2 {[%clk 0:02:55.9]} 7... Bb7 {[%clk 0:02:53.5]} 8. f3 {[%clk
0:02:55.7]} 8... a6 {[%clk 0:02:52.7]} 9. O-O {[%clk 0:02:55.5]} 9... Be7 {[%clk
0:02:52.9]} 10. Be3 {[%clk 0:02:53.9]} 10... O-O {[%clk 0:02:52.5]} 11. Qd2
{[%clk 0:02:53.9]} 11... Qc7 {[%clk 0:02:52.3]} 12. Rac1 {[%clk 0:02:53.1]}
12... Nbd7 {[%clk 0:02:51.5]} 13. Rfd1 {[%clk 0:02:53.1]} 13... Rac8 {[%clk
0:02:51.5]} 14. Bf1 {[%clk 0:02:53.2]} 14... Qb8 {[%clk 0:02:51.4]} 15. Qf2
{[%clk 0:02:53.4]} 15... Bd8 {[%clk 0:02:51.1]} 16. Kh1 {[%clk 0:02:46.5]} 16...
Bc7 {[%clk 0:02:50.9]} 17. Qg1 {[%clk 0:02:44.2]} 17... Kh8 {[%clk 0:02:50.2]}
18. b4 {[%clk 0:02:38.6]} 18... Rg8 {[%clk 0:02:50]} 19. Na4 {[%clk 0:02:21.4]}
19... g5 {[%clk 0:02:48.3]} 20. c5 {[%clk 0:02:16.4]} 20... dxc5 {[%clk
0:02:36.1]} 21. bxc5 {[%clk 0:02:16.2]} 21... bxc5 {[%clk 0:02:34.5]} 22. Nxc5
{[%clk 0:02:16.2]} 22... Nxc5 {[%clk 0:02:30.3]} 23. Rxc5 {[%clk 0:02:17.1]}
23... Be5 {[%clk 0:02:02.6]} 24. Nb3 {[%clk 0:01:46.3]} 24... g4 {[%clk
0:01:45.8]} 25. Rxc8 {[%clk 0:01:41.1]} 25... Bxc8 {[%clk 0:01:39]} 26. Nd4
{[%clk 0:01:27.7]} 26... Bb7 {[%clk 0:01:34.9]} 27. Rb1 {[%clk 0:01:15.5]} 27...
Qc7 {[%clk 0:00:57.5]} 28. f4 {[%clk 0:01:02.4]} 28... Bxf4 {[%clk 0:00:50.8]}
29. Rxb7 {[%clk 0:00:43]} 29... Qxb7 {[%clk 0:00:50.8]} 30. Bxf4 {[%clk
0:00:43.3]} 30... Qxe4 {[%clk 0:00:50.5]} 31. Bc1 {[%clk 0:00:40.2]} 31... Rd8
{[%clk 0:00:46.2]} 32. Bb2 {[%clk 0:00:39.7]} 32... e5 {[%clk 0:00:45.6]} 33.
Nb3 {[%clk 0:00:35.5]} 33... Rd1 {[%clk 0:00:43.4]} 34. Qf2 {[%clk 0:00:35.1]}
34... Kg7 {[%clk 0:00:36.6]} 35. Nc5 {[%clk 0:00:33.8]} 35... Qb1 {[%clk
0:00:27.8]} 36. Kg1 {[%clk 0:00:26.9]} 36... Rxf1+ {[%clk 0:00:27.7]} 37. Qxf1
{[%clk 0:00:27.8]} 37... Qxb2 {[%clk 0:00:28.1]} 38. Qf2 {[%clk 0:00:26.7]}
38... Qd4 {[%clk 0:00:27.9]} 39. Qxd4 {[%clk 0:00:25.6]} 39... exd4 {[%clk
0:00:28.8]} 40. Kf2 {[%clk 0:00:26.2]} 40... a5 {[%clk 0:00:27.1]} 41. Ke2
{[%clk 0:00:25.9]} 41... Nd5 {[%clk 0:00:27.1]} 42. g3 {[%clk 0:00:24.6]} 42...
Kf6 {[%clk 0:00:24.7]} 43. Kd3 {[%clk 0:00:24]} 43... Nb4+ {[%clk 0:00:23.3]}
44. Kxd4 {[%clk 0:00:22.6]} 44... Nxa2 {[%clk 0:00:23.9]} 45. Ne4+ {[%clk
0:00:20.9]} 45... Kf5 {[%clk 0:00:22.8]} 46. Nd6+ {[%clk 0:00:20.8]} 46... Ke6
{[%clk 0:00:22.9]} 47. Nc4 {[%clk 0:00:20.4]} 47... a4 {[%clk 0:00:23.2]} 48.
Ne3 {[%clk 0:00:19.5]} 48... h5 {[%clk 0:00:22.2]} 49. Kc4 {[%clk 0:00:17.9]}
49... Ke5 {[%clk 0:00:21.6]} 50. Ng2 {[%clk 0:00:16.8]} 50... Ke4 {[%clk
0:00:18.4]} 51. Nh4 {[%clk 0:00:15.1]} 51... f5 {[%clk 0:00:17.1]} 52. Kb5
{[%clk 0:00:14.8]} 52... Nc3+ {[%clk 0:00:16.8]} 53. Kb4 {[%clk 0:00:14.8]}
53... Nd1 {[%clk 0:00:15]} 54. Kxa4 {[%clk 0:00:14.7]} 54... Ne3 {[%clk
0:00:15.1]} 55. Ng6 {[%clk 0:00:13.2]} 55... Nf1 {[%clk 0:00:14.1]} 56. Nf4
{[%clk 0:00:13.4]} 56... h4 {[%clk 0:00:14.2]} 57. Nh5 {[%clk 0:00:10.9]} 57...
hxg3 {[%clk 0:00:13.6]} 58. hxg3 {[%clk 0:00:10.3]} 58... Kf3 {[%clk 0:00:13.5]}
59. Kb4 {[%clk 0:00:11.2]} 59... Nxg3 {[%clk 0:00:13.4]} 60. Ng7 {[%clk
0:00:12.1]} 60... f4 {[%clk 0:00:13.3]} 61. Kc4 {[%clk 0:00:13]} 61... Ne2
{[%clk 0:00:13.4]} 62. Kd3 {[%clk 0:00:13]} 62... g3 {[%clk 0:00:13.3]} 63. Ne6
{[%clk 0:00:13.9]} 63... g2 {[%clk 0:00:09.6]} 64. Ng5+ {[%clk 0:00:14.8]} 64...
Kg4 {[%clk 0:00:09]} 65. Kxe2 {[%clk 0:00:15.7]} 65... Kxg5 {[%clk 0:00:08.9]}
66. Kf2 {[%clk 0:00:15.5]} 66... f3 {[%clk 0:00:09.4]} 67. Kg1 {[%clk
0:00:15.1]} 67... Kg4 {[%clk 0:00:09.7]} 68. Kf2 {[%clk 0:00:15.5]} 68... Kf4
{[%clk 0:00:10.1]} 69. Kg1 {[%clk 0:00:16.1]} 69... Ke3 {[%clk 0:00:10.8]} 70.
Kh2 {[%clk 0:00:16.7]} 70... Kf2 {[%clk 0:00:11.2]} 71. Kh3 {[%clk 0:00:16.7]}
71... g1=Q {[%clk 0:00:11.8]} 72. Kh4 {[%clk 0:00:17.6]} 72... Qg6 {[%clk
0:00:11.2]} 73. Kh3 {[%clk 0:00:17.7]} 73... Qg3# {[%clk 0:00:10.7]} 0-1

[Event "*** Titled Tuesday Blitz"]
[Site "Chess.com"]
[Date "2020.05.05"]
[Round "7"]
[White "CrushingKings"]
[Black "oskariot"]
[Result "1-0"]
[WhiteElo "2469"]
[BlackElo "2604"]
[TimeControl "180+1"]
[EndTime "11:20:09 PDT"]
[Termination "CrushingKings won by resignation"]

1. e4 {[%clk 0:03:00.9]} 1... c5 {[%clk 0:02:59.2]} 2. d4 {[%clk 0:03:00]} 2...
cxd4 {[%clk 0:02:59.1]} 3. c3 {[%clk 0:03:00.5]} 3... d3 {[%clk 0:02:51.4]} 4.
Bxd3 {[%clk 0:03:00.2]} 4... Nc6 {[%clk 0:02:51.4]} 5. c4 {[%clk 0:03:00.7]}
5... g6 {[%clk 0:02:51.6]} 6. Nf3 {[%clk 0:03:00.9]} 6... Bg7 {[%clk 0:02:52.2]}
7. h3 {[%clk 0:03:01.5]} 7... d6 {[%clk 0:02:52.8]} 8. O-O {[%clk 0:03:02.1]}
8... Nf6 {[%clk 0:02:53.4]} 9. Nc3 {[%clk 0:03:02.7]} 9... O-O {[%clk 0:02:54]}
10. Be3 {[%clk 0:03:02.9]} 10... Bd7 {[%clk 0:02:54.6]} 11. Rc1 {[%clk
0:03:03.3]} 11... Rc8 {[%clk 0:02:55.2]} 12. b3 {[%clk 0:03:03.8]} 12... a6
{[%clk 0:02:55.8]} 13. Qe2 {[%clk 0:03:04.2]} 13... Re8 {[%clk 0:02:56.4]} 14.
Rfd1 {[%clk 0:03:04.8]} 14... Qc7 {[%clk 0:02:56.9]} 15. Bb1 {[%clk 0:03:04.6]}
15... Qb8 {[%clk 0:02:57.1]} 16. c5 {[%clk 0:02:27.6]} 16... dxc5 {[%clk
0:02:50.6]} 17. Bxc5 {[%clk 0:02:27.8]} 17... Ne5 {[%clk 0:02:43.4]} 18. Nxe5
{[%clk 0:02:24.7]} 18... Qxe5 {[%clk 0:02:44.3]} 19. Bd4 {[%clk 0:02:25.1]}
19... Qa5 {[%clk 0:02:40]} 20. e5 {[%clk 0:01:37.8]} 20... Nh5 {[%clk
0:02:26.5]} 21. Qe3 {[%clk 0:01:22.2]} 21... f5 {[%clk 0:00:59.4]} 22. Bb6
{[%clk 0:00:19.4]} 22... Qxe5 {[%clk 0:00:57.7]} 23. Qxe5 {[%clk 0:00:17.8]}
23... Bxe5 {[%clk 0:00:58.6]} 24. Rxd7 {[%clk 0:00:18]} 24... Bxc3 {[%clk
0:00:50.1]} 25. Rxb7 {[%clk 0:00:18.4]} 25... Nf4 {[%clk 0:00:50.5]} 26. Kf1
{[%clk 0:00:18.8]} 26... Bd4 {[%clk 0:00:45.8]} 27. Rxc8 {[%clk 0:00:14.6]}
27... Rxc8 {[%clk 0:00:46.7]} 28. Rc7 {[%clk 0:00:15.5]} 28... Rd8 {[%clk
0:00:44.2]} 29. Bxd4 {[%clk 0:00:12.4]} 29... Rxd4 {[%clk 0:00:45.1]} 30. Rc1
{[%clk 0:00:12.3]} 30... Kf7 {[%clk 0:00:45.5]} 31. g3 {[%clk 0:00:12.7]} 31...
Nd5 {[%clk 0:00:45.8]} 32. Ke2 {[%clk 0:00:11.8]} 32... Kf6 {[%clk 0:00:43.4]}
33. Bd3 {[%clk 0:00:11.6]} 33... Nb4 {[%clk 0:00:39.7]} 34. Rc4 {[%clk
0:00:10.2]} 34... Rxc4 {[%clk 0:00:37.6]} 35. Bxc4 {[%clk 0:00:11.1]} 35... Nxa2
{[%clk 0:00:32.6]} 36. Bxa6 {[%clk 0:00:11.2]} 36... Ke5 {[%clk 0:00:32.1]} 37.
Bc4 {[%clk 0:00:09.7]} 37... Kd4 {[%clk 0:00:20.6]} 38. Bg8 {[%clk 0:00:09.2]}
38... h6 {[%clk 0:00:19]} 39. Bh7 {[%clk 0:00:09.6]} 39... Nc1+ {[%clk
0:00:12.7]} 40. Kf3 {[%clk 0:00:09.3]} 40... Nxb3 {[%clk 0:00:12.8]} 41. Bxg6
{[%clk 0:00:09.7]} 41... Ke5 {[%clk 0:00:12.8]} 42. Bf7 {[%clk 0:00:09.2]} 42...
e6 {[%clk 0:00:13.2]} 43. Ke3 {[%clk 0:00:08.9]} 43... Na5 {[%clk 0:00:10.5]}
44. f4+ {[%clk 0:00:09.2]} 44... Kf6 {[%clk 0:00:10.7]} 45. Be8 {[%clk
0:00:08.7]} 45... Nc4+ {[%clk 0:00:11.2]} 46. Kd3 {[%clk 0:00:08.8]} 46... Nd6
{[%clk 0:00:12.1]} 47. Bc6 {[%clk 0:00:08.5]} 47... Nf7 {[%clk 0:00:11.8]} 48.
Ke3 {[%clk 0:00:08]} 48... Nd6 {[%clk 0:00:12.2]} 49. Kd3 {[%clk 0:00:08]} 49...
Nc8 {[%clk 0:00:11.8]} 50. Kd4 {[%clk 0:00:07.9]} 50... Ne7 {[%clk 0:00:12]} 51.
Bf3 {[%clk 0:00:06.8]} 51... Ng6 {[%clk 0:00:11.6]} 52. Ke3 {[%clk 0:00:06.6]}
52... Nf8 {[%clk 0:00:11.4]} 53. Kd4 {[%clk 0:00:06.4]} 53... Nh7 {[%clk
0:00:11.6]} 54. Ke3 {[%clk 0:00:06.7]} 54... Nf8 {[%clk 0:00:11.5]} 55. Kd4
{[%clk 0:00:06.9]} 55... Nd7 {[%clk 0:00:12.1]} 56. Bc6 {[%clk 0:00:07]} 56...
Nb6 {[%clk 0:00:12.4]} 57. Bf3 {[%clk 0:00:07.1]} 57... Ke7 {[%clk 0:00:11.8]}
58. Kc5 {[%clk 0:00:06.9]} 58... Nd7+ {[%clk 0:00:12]} 59. Kd4 {[%clk
0:00:07.3]} 59... Kd6 {[%clk 0:00:12.9]} 60. g4 {[%clk 0:00:07.6]} 60... Nf6
{[%clk 0:00:06.1]} 61. g5 {[%clk 0:00:07.8]} 61... Ng8 {[%clk 0:00:06.2]} 62. h4
{[%clk 0:00:07.3]} 62... hxg5 {[%clk 0:00:04.1]} 63. hxg5 {[%clk 0:00:08.2]}
63... Ke7 {[%clk 0:00:03.2]} 64. Bh5 {[%clk 0:00:08]} 64... Kd6 {[%clk
0:00:02.4]} 65. Bf7 {[%clk 0:00:08]} 65... e5+ {[%clk 0:00:02.8]} 66. fxe5+
{[%clk 0:00:07.8]} 66... Ke7 {[%clk 0:00:03.7]} 67. Bxg8 {[%clk 0:00:08]} 67...
f4 {[%clk 0:00:04.6]} 68. Ke4 {[%clk 0:00:08.4]} 1-0

[Event "*** Titled Tuesday Blitz"]
[Site "Chess.com"]
[Date "2020.05.05"]
[Round "7"]
[White "Filip_Covic"]
[Black "Lupul_Cenusiu"]
[Result "1-0"]
[WhiteElo "2369"]
[BlackElo "2490"]
[TimeControl "180+1"]
[EndTime "11:20:10 PDT"]
[Termination "Filip_Covic won on time"]

1. d4 {[%clk 0:03:00.9]} 1... Nf6 {[%clk 0:02:58.6]} 2. c4 {[%clk 0:03:01]} 2...
e6 {[%clk 0:02:58.8]} 3. Nf3 {[%clk 0:03:00.3]} 3... c5 {[%clk 0:02:58.8]} 4. d5
{[%clk 0:03:00.3]} 4... exd5 {[%clk 0:02:58.3]} 5. cxd5 {[%clk 0:03:00.9]} 5...
a6 {[%clk 0:02:58.3]} 6. a4 {[%clk 0:03:00]} 6... Bd6 {[%clk 0:02:57.5]} 7. Nc3
{[%clk 0:02:57.4]} 7... O-O {[%clk 0:02:57]} 8. Bg5 {[%clk 0:02:54.8]} 8... Re8
{[%clk 0:02:56.9]} 9. e3 {[%clk 0:02:54.4]} 9... Bc7 {[%clk 0:02:49.9]} 10. Bd3
{[%clk 0:02:46]} 10... d6 {[%clk 0:02:46.7]} 11. h3 {[%clk 0:02:41.3]} 11...
Nbd7 {[%clk 0:02:42.6]} 12. O-O {[%clk 0:02:40.6]} 12... h6 {[%clk 0:02:41.8]}
13. Bh4 {[%clk 0:02:36.4]} 13... Ba5 {[%clk 0:02:40.1]} 14. Qc2 {[%clk
0:02:02.6]} 14... Qc7 {[%clk 0:02:20.8]} 15. Bc4 {[%clk 0:01:39.2]} 15... Bb4
{[%clk 0:02:05.2]} 16. Rfe1 {[%clk 0:01:26.3]} 16... b6 {[%clk 0:02:02.7]} 17.
e4 {[%clk 0:01:20.7]} 17... Bb7 {[%clk 0:01:59.9]} 18. Rad1 {[%clk 0:01:09.6]}
18... Rac8 {[%clk 0:01:48.4]} 19. Bg3 {[%clk 0:01:06.4]} 19... Qb8 {[%clk
0:01:37.7]} 20. Qd3 {[%clk 0:01:00.2]} 20... Qa8 {[%clk 0:01:22.5]} 21. Bxd6
{[%clk 0:00:56.1]} 21... Rcd8 {[%clk 0:00:56.2]} 22. e5 {[%clk 0:00:32.7]} 22...
Bxc3 {[%clk 0:00:37]} 23. bxc3 {[%clk 0:00:28.5]} 23... b5 {[%clk 0:00:33.7]}
24. axb5 {[%clk 0:00:25]} 24... axb5 {[%clk 0:00:33.2]} 25. Bxb5 {[%clk
0:00:12.4]} 25... Nxd5 {[%clk 0:00:32.8]} 26. Bc4 {[%clk 0:00:11.1]} 26... N5b6
{[%clk 0:00:30.9]} 27. Bb5 {[%clk 0:00:03]} 27... Bc6 {[%clk 0:00:22.3]} 28.
Bxc6 {[%clk 0:00:02.8]} 28... Qxc6 {[%clk 0:00:21.9]} 29. Qe3 {[%clk 0:00:03.1]}
29... Nc4 {[%clk 0:00:20]} 30. Qf4 {[%clk 0:00:03.3]} 30... Nxd6 {[%clk
0:00:18.5]} 31. Rxd6 {[%clk 0:00:02.5]} 31... Qc7 {[%clk 0:00:17]} 32. Red1
{[%clk 0:00:02.9]} 32... Nf8 {[%clk 0:00:17]} 33. Qf5 {[%clk 0:00:02.9]} 33...
Ne6 {[%clk 0:00:16.5]} 34. Rxd8 {[%clk 0:00:02.8]} 34... Rxd8 {[%clk 0:00:16.4]}
35. Rxd8+ {[%clk 0:00:03.1]} 35... Qxd8 {[%clk 0:00:16.6]} 36. Qe4 {[%clk
0:00:03.8]} 36... Qd1+ {[%clk 0:00:16.1]} 37. Kh2 {[%clk 0:00:04.3]} 37... Qc1
{[%clk 0:00:16.2]} 38. c4 {[%clk 0:00:04.7]} 38... Qc3 {[%clk 0:00:14.7]} 39. g3
{[%clk 0:00:04.4]} 39... g6 {[%clk 0:00:14.1]} 40. Kg2 {[%clk 0:00:04.5]} 40...
Qb2 {[%clk 0:00:14.4]} 41. Qd5 {[%clk 0:00:04.6]} 41... Kg7 {[%clk 0:00:14.3]}
42. h4 {[%clk 0:00:05]} 42... Qe2 {[%clk 0:00:12.9]} 43. Nh2 {[%clk 0:00:04.2]}
43... Qc2 {[%clk 0:00:10.3]} 44. Ng4 {[%clk 0:00:04.1]} 44... Qf5 {[%clk
0:00:10]} 45. Ne3 {[%clk 0:00:03.6]} 45... Qb1 {[%clk 0:00:09.2]} 46. Qd6 {[%clk
0:00:03.8]} 46... Qe4+ {[%clk 0:00:08.7]} 47. Kh2 {[%clk 0:00:03]} 47... Qd4
{[%clk 0:00:08.7]} 48. Qd5 {[%clk 0:00:03.5]} 48... Qb2 {[%clk 0:00:07.9]} 49.
Kg2 {[%clk 0:00:03.9]} 49... Qb8 {[%clk 0:00:07.6]} 50. Ng4 {[%clk 0:00:04.4]}
50... Qb1 {[%clk 0:00:07]} 51. Nf6 {[%clk 0:00:04.6]} 51... Qf5 {[%clk
0:00:06.8]} 52. Ne8+ {[%clk 0:00:04.9]} 52... Kf8 {[%clk 0:00:06.4]} 53. Nd6
{[%clk 0:00:05.5]} 53... Qc2 {[%clk 0:00:05]} 54. Qa8+ {[%clk 0:00:05.7]} 54...
Kg7 {[%clk 0:00:04.3]} 55. Qf3 {[%clk 0:00:06.4]} 55... Nd8 {[%clk 0:00:02.8]}
56. Ne8+ {[%clk 0:00:06.8]} 56... Kf8 {[%clk 0:00:02.6]} 57. Nf6 {[%clk
0:00:07.7]} 57... Qxc4 {[%clk 0:00:02.5]} 58. Nd7+ {[%clk 0:00:07.6]} 58... Ke7
{[%clk 0:00:02.5]} 59. Nb6 {[%clk 0:00:07.3]} 59... Qe6 {[%clk 0:00:02.6]} 60.
Nd5+ {[%clk 0:00:06.2]} 60... Kf8 {[%clk 0:00:02.2]} 61. Nf4 {[%clk 0:00:06.3]}
61... Qxe5 {[%clk 0:00:01.7]} 62. Nxg6+ {[%clk 0:00:05.1]} 62... Ke8 {[%clk
0:00:02.1]} 63. Nxe5 {[%clk 0:00:05.7]} 63... f5 {[%clk 0:00:01.2]} 64. Qxf5
{[%clk 0:00:05.6]} 64... Ke7 {[%clk 0:00:01.5]} 65. Qd7+ {[%clk 0:00:05.5]} 1-0

[Event "*** Titled Tuesday Blitz"]
[Site "Chess.com"]
[Date "2020.05.05"]
[Round "7"]
[White "Batsai"]
[Black "Fh2411"]
[Result "0-1"]
[WhiteElo "2277"]
[BlackElo "2463"]
[TimeControl "180+1"]
[EndTime "11:20:11 PDT"]
[Termination "Fh2411 won by checkmate"]

1. d4 {[%clk 0:03:00.3]} 1... d5 {[%clk 0:02:59.7]} 2. c4 {[%clk 0:03:00.2]}
2... c6 {[%clk 0:02:59.9]} 3. Nc3 {[%clk 0:02:59]} 3... Nf6 {[%clk 0:03:00]} 4.
Nf3 {[%clk 0:02:58.2]} 4... dxc4 {[%clk 0:03:00.2]} 5. a4 {[%clk 0:02:46.2]}
5... Bf5 {[%clk 0:02:59.3]} 6. e3 {[%clk 0:02:40.2]} 6... e6 {[%clk 0:02:58.3]}
7. Bxc4 {[%clk 0:02:39.1]} 7... Bb4 {[%clk 0:02:58.3]} 8. O-O {[%clk 0:02:38.4]}
8... Nbd7 {[%clk 0:02:58.5]} 9. Qe2 {[%clk 0:02:36.4]} 9... Bg6 {[%clk 0:02:58]}
10. Rd1 {[%clk 0:02:34.1]} 10... O-O {[%clk 0:02:37.1]} 11. Na2 {[%clk
0:02:22.3]} 11... Bd6 {[%clk 0:02:34.1]} 12. Nc3 {[%clk 0:02:21]} 12... Qe7
{[%clk 0:02:24.6]} 13. h3 {[%clk 0:02:14.6]} 13... a5 {[%clk 0:02:19.2]} 14. e4
{[%clk 0:01:55.7]} 14... e5 {[%clk 0:02:12.5]} 15. Bg5 {[%clk 0:01:46.7]} 15...
Rfe8 {[%clk 0:01:16]} 16. d5 {[%clk 0:01:35.3]} 16... Bb4 {[%clk 0:01:11.9]} 17.
Nh4 {[%clk 0:01:15.4]} 17... Bxc3 {[%clk 0:00:57.4]} 18. d6 {[%clk 0:01:15.2]}
18... Qd8 {[%clk 0:00:55.6]} 19. Nxg6 {[%clk 0:01:00.9]} 19... hxg6 {[%clk
0:00:54.4]} 20. bxc3 {[%clk 0:00:57.2]} 20... Nf8 {[%clk 0:00:53.8]} 21. Rab1
{[%clk 0:00:51.9]} 21... Qd7 {[%clk 0:00:52.9]} 22. Qf3 {[%clk 0:00:39.4]} 22...
N6h7 {[%clk 0:00:47.7]} 23. Be3 {[%clk 0:00:31]} 23... Ne6 {[%clk 0:00:47.6]}
24. Ba2 {[%clk 0:00:24.1]} 24... b5 {[%clk 0:00:38]} 25. axb5 {[%clk 0:00:23.5]}
25... cxb5 {[%clk 0:00:38.9]} 26. Rd5 {[%clk 0:00:22.7]} 26... Rab8 {[%clk
0:00:25.2]} 27. Qe2 {[%clk 0:00:13.8]} 27... b4 {[%clk 0:00:20.2]} 28. cxb4
{[%clk 0:00:13.9]} 28... axb4 {[%clk 0:00:21.1]} 29. Bc4 {[%clk 0:00:13.6]}
29... Nf6 {[%clk 0:00:19.8]} 30. Bb5 {[%clk 0:00:13]} 30... Rxb5 {[%clk
0:00:10.1]} 31. Qxb5 {[%clk 0:00:11.3]} 31... Rd8 {[%clk 0:00:06.9]} 32. Qxd7
{[%clk 0:00:09.7]} 32... Rxd7 {[%clk 0:00:07.8]} 33. Rd2 {[%clk 0:00:08.6]}
33... Nxe4 {[%clk 0:00:06.8]} 34. Rd5 {[%clk 0:00:08.4]} 34... Nc3 {[%clk
0:00:07]} 35. Rdd1 {[%clk 0:00:06.3]} 35... Nxb1 {[%clk 0:00:02.8]} 36. Rxb1
{[%clk 0:00:05.8]} 36... Rxd6 {[%clk 0:00:03.7]} 37. Rxb4 {[%clk 0:00:06.3]}
37... f6 {[%clk 0:00:04.2]} 38. Kh2 {[%clk 0:00:07.2]} 38... Rd3 {[%clk
0:00:04]} 39. Rb8+ {[%clk 0:00:07.2]} 39... Kf7 {[%clk 0:00:04]} 40. Rb7+ {[%clk
0:00:08.1]} 40... Kg8 {[%clk 0:00:04.3]} 41. Re7 {[%clk 0:00:07.3]} 41... Nd4
{[%clk 0:00:03.3]} 42. Rd7 {[%clk 0:00:06.2]} 42... Kh7 {[%clk 0:00:03.1]} 43.
Re7 {[%clk 0:00:05.5]} 43... g5 {[%clk 0:00:03.4]} 44. Bc1 {[%clk 0:00:03.7]}
44... Kg6 {[%clk 0:00:03.8]} 45. Ba3 {[%clk 0:00:03.2]} 45... Rxa3 {[%clk
0:00:03.8]} 46. Rc7 {[%clk 0:00:02.6]} 46... Rd3 {[%clk 0:00:04.7]} 47. g4
{[%clk 0:00:02.6]} 47... Rd2 {[%clk 0:00:05.1]} 48. h4 {[%clk 0:00:03.5]} 48...
Rxf2+ {[%clk 0:00:05.3]} 49. Kg1 {[%clk 0:00:03.8]} 49... Rf3 {[%clk 0:00:06.2]}
50. h5+ {[%clk 0:00:03.9]} 50... Kh7 {[%clk 0:00:06.4]} 51. Rc8 {[%clk
0:00:04.8]} 51... Rf4 {[%clk 0:00:06.5]} 52. Kg2 {[%clk 0:00:03.5]} 52... Rxg4+
{[%clk 0:00:07.4]} 53. Kh3 {[%clk 0:00:03.6]} 53... Rf4 {[%clk 0:00:08.3]} 54.
Kg3 {[%clk 0:00:04.5]} 54... Rh4 {[%clk 0:00:09]} 55. h6 {[%clk 0:00:04.7]}
55... Nf5+ {[%clk 0:00:09.7]} 56. Kf3 {[%clk 0:00:04.5]} 56... Rxh6 {[%clk
0:00:10.3]} 57. Kg4 {[%clk 0:00:04.7]} 57... Nd4 {[%clk 0:00:10.9]} 58. Kg3
{[%clk 0:00:04.1]} 58... Rh4 {[%clk 0:00:11.8]} 59. Kg2 {[%clk 0:00:04]} 59...
Kg6 {[%clk 0:00:12.4]} 60. Kg3 {[%clk 0:00:04.9]} 60... Rf4 {[%clk 0:00:12.6]}
61. Kg2 {[%clk 0:00:05.8]} 61... Nf5 {[%clk 0:00:12.9]} 62. Kh3 {[%clk
0:00:05.6]} 62... e4 {[%clk 0:00:13.4]} 63. Kg2 {[%clk 0:00:06.5]} 63... e3
{[%clk 0:00:13.8]} 64. Re8 {[%clk 0:00:06.7]} 64... Rf2+ {[%clk 0:00:13.9]} 65.
Kg1 {[%clk 0:00:06.4]} 65... g4 {[%clk 0:00:14.3]} 66. Re4 {[%clk 0:00:06.2]}
66... Kg5 {[%clk 0:00:13.7]} 67. Kh1 {[%clk 0:00:06.2]} 67... g3 {[%clk
0:00:14]} 68. Kg1 {[%clk 0:00:07.1]} 68... e2 {[%clk 0:00:14.3]} 69. Re3 {[%clk
0:00:02.2]} 69... Nxe3 {[%clk 0:00:12.8]} 70. Kh1 {[%clk 0:00:03.1]} 70... e1=Q#
{[%clk 0:00:13.2]} 0-1